bitfinex/quotes_BTCUSD_20250623
["timestamp","ask_amount","ask_price","bid_price","bid_amount"]
[1750709632737,0.76417308,103530.0,103520.0,0.0645]
[1750709633384,0.76417395,103530.0,103520.0,0.0645]
[1750709635474,0.78226359,103530.0,103520.0,0.0645]
[1750709635694,0.76417395,103530.0,103520.0,0.0645]
[1750709636116,0.7822647,103530.0,103520.0,0.0645]
[1750709636348,0.36267728,103530.0,103520.0,0.0665974]
[1750709636571,0.33952,103530.0,103520.0,0.0665974]
[1750709637258,0.36267962,103530.0,103520.0,0.0665974]
[1750709637470,0.75513309,103530.0,103520.0,0.0665974]
[1750709637896,0.36267962,103530.0,103520.0,0.0665974]
[1750709638762,0.75513309,103530.0,103520.0,0.0665974]
[1750709638971,0.36267962,103530.0,103520.0,0.0665974]
[1750709640098,0.37172862,103530.0,103520.0,0.0665974]
[1750709640313,0.002,103530.0,103520.0,0.95612951]
[1750709640537,0.002,103530.0,103520.0,0.96578929]
[1750709640942,0.002,103530.0,103520.0,0.97544897]
[1750709641174,0.002,103530.0,103520.0,0.98510837]
[1750709641381,0.002,103530.0,103520.0,0.5829955]
[1750709641591,0.39254206,103550.0,103530.0,0.0307]
[1750709641801,0.39254206,103550.0,103530.0,0.0632]
[1750709641802,1.384099,103540.0,103530.0,0.0632]
[1750709642665,1.384099,103540.0,103530.0,0.25638072]
[1750709642886,0.50108859,103550.0,103540.0,0.0652974]
[1750709643109,0.42575078,103550.0,103540.0,0.0652974]
[1750709643334,0.05038868,103550.0,103540.0,0.0652974]
[1750709643576,0.44284215,103550.0,103540.0,0.0652974]
[1750709644697,0.05138868,103550.0,103540.0,0.0652974]
[1750709644962,0.44383842,103550.0,103540.0,0.0652974]
[1750709645172,0.44484071,103550.0,103540.0,0.0652974]
[1750709645831,0.4448395,103550.0,103540.0,0.0652974]
[1750709646245,0.05238603,103550.0,103540.0,0.0652974]
[1750709646454,0.4448395,103550.0,103540.0,0.0632]
[1750709647080,1.82893501,103550.0,103530.0,0.0325974]
[1750709647297,0.39245347,103540.0,103530.0,0.0652974]
[1750709647509,0.10238798,103550.0,103530.0,0.0652974]
[1750709647722,1.384099,103530.0,103510.0,0.0652974]
[1750709647934,0.39245347,103520.0,103510.0,0.0652974]
[1750709648146,0.39245347,103520.0,103510.0,0.0305]
[1750709648147,0.49275286,103520.0,103510.0,0.0305]
[1750709648370,0.10029939,103520.0,103500.0,0.0652974]
[1750709648626,0.51591227,103520.0,103500.0,0.0652974]
[1750709648841,0.49275286,103520.0,103500.0,0.0652974]
[1750709649253,0.49375286,103520.0,103500.0,0.0652974]
[1750709649705,0.49275286,103520.0,103500.0,0.0652974]
[1750709649920,0.10129939,103520.0,103500.0,0.0652974]
[1750709650135,0.49375286,103520.0,103500.0,0.0652974]
[1750709650772,0.10129939,103520.0,103500.0,0.0347974]
[1750709651037,0.10129939,103520.0,103510.0,0.0325]
[1750709651297,0.49375286,103520.0,103510.0,0.0325]
[1750709651962,0.54312815,103520.0,103510.0,0.0325]
[1750709652168,0.14967468,103520.0,103510.0,0.0325]
[1750709652387,0.49275286,103520.0,103510.0,0.0325]
[1750709653033,0.49275286,103520.0,103510.0,0.0335]
[1750709655860,0.49275286,103520.0,103510.0,0.0654]
[1750709656192,0.44158418,103540.0,103510.0,0.0654]
[1750709656343,1.77655247,103520.0,103510.0,0.0654]
[1750709656548,0.39245347,103520.0,103510.0,0.0654]
[1750709656953,1.384099,103520.0,103510.0,0.0654]
[1750709657452,0.02314972,103520.0,103510.0,0.0654]
[1750709657857,1.384099,103520.0,103510.0,0.0654]
[1750709658072,0.41560319,103520.0,103510.0,0.0654]
[1750709659152,0.02314972,103520.0,103510.0,0.0654]
[1750709659341,1.384099,103520.0,103510.0,0.0654]
[1750709659595,0.49275286,103530.0,103510.0,0.0654]
[1750709659874,1.384099,103520.0,103510.0,0.0654]
[1750709660287,0.84729371,103530.0,103520.0,0.0328]
[1750709660583,0.87044003,103530.0,103520.0,0.0328]
[1750709660730,0.87244003,103530.0,103510.0,0.0657]
[1750709661160,0.8805224,103530.0,103510.0,0.0647]
[1750709661566,0.8845224,103530.0,103510.0,0.0647]
[1750709661767,0.8825224,103530.0,103510.0,0.0647]
[1750709662182,0.8845224,103530.0,103510.0,0.0647]
[1750709662931,0.50911598,103530.0,103510.0,0.0647]
[1750709663143,0.50911598,103530.0,103520.0,0.0657]
[1750709663144,0.49457513,103530.0,103520.0,0.0657]
[1750709663350,0.36714632,103530.0,103520.0,0.46025087]
[1750709663560,0.344,103530.0,103520.0,0.0677974]
[1750709663765,0.004,103530.0,103520.0,0.0677974]
[1750709663975,0.002,103530.0,103520.0,0.0677974]
[1750709664184,0.002,103530.0,103520.0,0.27065665]
[1750709664392,0.39254206,103550.0,103540.0,0.0657]
[1750709664607,0.53227194,103550.0,103540.0,0.0657]
[1750709664822,0.89713452,103550.0,103540.0,0.0657]
[1750709665048,0.39713434,103550.0,103540.0,0.0657]
[1750709665258,0.53227194,103550.0,103540.0,0.0677974]
[1750709665463,0.92472541,103550.0,103540.0,0.0677974]
[1750709665691,0.41568447,103550.0,103540.0,0.0677974]
[1750709665895,0.75568447,103550.0,103540.0,0.0677974]
[1750709667014,0.76472182,103550.0,103540.0,0.0677974]
[1750709667246,0.764721,103550.0,103540.0,0.0677974]
[1750709667725,0.75568447,103550.0,103540.0,0.0677974]
[1750709667940,0.363231,103550.0,103540.0,0.0677974]
[1750709668155,0.75568447,103550.0,103540.0,0.0677974]
[1750709668801,0.76471861,103550.0,103540.0,0.0657]
[1750709669016,2.249117,103550.0,103540.0,0.0328]
[1750709669236,2.26718587,103550.0,103540.0,0.0328]
[1750709669459,2.26718587,103550.0,103530.0,0.0351974]
[1750709669666,0.39245347,103540.0,103530.0,0.0683974]
[1750709670718,1.77655247,103540.0,103530.0,0.0683974]
[1750709670926,0.39245347,103540.0,103530.0,0.0683974]
[1750709671357,0.39245347,103540.0,103530.0,0.0713974]
[1750709671985,0.62918798,103550.0,103530.0,0.0713974]
[1750709672198,0.39245347,103540.0,103530.0,0.0685974]
[1750709672415,1.384099,103540.0,103530.0,0.0381974]
[1750709672655,0.39245347,103540.0,103530.0,0.0381974]
[1750709672881,0.39245347,103540.0,103530.0,0.0371974]
[1750709673104,0.39245347,103540.0,103530.0,0.0675974]
[1750709673319,1.77655247,103540.0,103530.0,0.0647974]
[1750709673534,0.34008859,103550.0,103540.0,0.0607]
[1750709673805,0.75566649,103550.0,103540.0,0.0627974]
[1750709674020,0.73254206,103550.0,103540.0,0.0627974]
[1750709677349,0.89254206,103550.0,103540.0,0.0627974]
[1750709677552,0.39254206,103550.0,103540.0,0.0627974]
[1750709679805,0.39254206,103550.0,103540.0,0.3127974]
[1750709680008,8.859e-05,103550.0,103540.0,0.3127974]
[1750709680257,0.39254206,103550.0,103540.0,0.3127974]
[1750709681322,8.859e-05,103550.0,103540.0,0.3127974]
[1750709681498,0.39254206,103550.0,103540.0,0.3127974]
[1750709684723,0.41566917,103550.0,103540.0,0.3127974]
[1750709686614,0.0232157,103550.0,103540.0,0.3127974]
[1750709686828,0.41566917,103550.0,103540.0,0.3127974]
[1750709687029,0.39254206,103550.0,103540.0,0.3127974]
[1750709687715,8.859e-05,103550.0,103540.0,1.02768578]
[1750709687907,8.859e-05,103550.0,103540.0,0.61591676]
[1750709688131,8.859e-05,103550.0,103540.0,0.41309679]
[1750709688334,8.859e-05,103550.0,103540.0,0.81277449]
[1750709688545,8.859e-05,103550.0,103540.0,0.60029679]
[1750709688779,0.39254206,103550.0,103540.0,0.60029679]
[1750709689006,0.39254206,103550.0,103540.0,0.60129679]
[1750709689511,0.39254206,103550.0,103540.0,0.80711695]
[1750709689738,0.39254206,103550.0,103540.0,0.60729679]
[1750709689956,8.859e-05,103550.0,103540.0,0.81977476]
[1750709690181,0.39254206,103550.0,103540.0,0.81011685]
[1750709690390,0.39254206,103550.0,103540.0,0.5065974]
[1750709690822,0.38754206,103550.0,103540.0,0.5066774]
[1750709691226,0.38754206,103550.0,103540.0,0.3197974]
[1750709691436,0.38754206,103550.0,103540.0,0.5064374]
[1750709692469,0.73245347,103560.0,103550.0,0.0647974]
[1750709692672,1.17520111,103560.0,103550.0,0.0647974]
[1750709692912,0.9355005,103560.0,103550.0,0.0321]
[1750709693133,1.384099,103550.0,103540.0,0.5084374]
[1750709693390,0.39245347,103550.0,103540.0,0.5044374]
[1750709693601,0.81711832,103550.0,103540.0,0.3177974]
[1750709693808,0.42466485,103550.0,103540.0,0.3177974]
[1750709694019,0.42466485,103550.0,103540.0,0.3147974]
[1750709694915,0.42466485,103550.0,103540.0,0.3187974]
[1750709695120,0.42466485,103550.0,103540.0,0.3217974]
[1750709695369,0.42326485,103550.0,103540.0,0.3217974]
[1750709695987,0.4232658,103550.0,103540.0,0.3217974]
[1750709696216,0.4232658,103550.0,103540.0,0.2891]
[1750709696462,1.724099,103540.0,103520.0,0.0331974]
[1750709696667,0.34,103520.0,103500.0,0.0654974]
[1750709696922,0.39245347,103510.0,103500.0,0.0654974]
[1750709697764,0.39245347,103510.0,103500.0,0.25873411]
[1750709697977,0.39245347,103510.0,103500.0,0.28005721]
[1750709698406,0.34,103520.0,103510.0,0.0648]
[1750709698618,1.384099,103530.0,103520.0,0.0327]
[1750709698830,1.13394773,103530.0,103520.0,0.0648]
[1750709699038,1.13394773,103530.0,103520.0,0.0668974]
[1750709699248,1.13394746,103530.0,103520.0,0.0668974]
[1750709699686,1.13394746,103530.0,103520.0,0.0648974]
[1750709700114,1.13994746,103530.0,103520.0,0.0648974]
[1750709700737,1.14394746,103530.0,103520.0,0.0307]
[1750709701171,1.13490694,103530.0,103520.0,0.063]
[1750709701390,0.35904005,103530.0,103520.0,0.0650974]
[1750709701628,0.01,103530.0,103520.0,0.78002841]
[1750709701874,0.01,103530.0,103520.0,0.96754841]
[1750709702094,0.01,103530.0,103520.0,0.37791563]
[1750709702304,0.40245347,103530.0,103520.0,0.16539679]
[1750709702516,0.39645347,103530.0,103520.0,0.56607563]
[1750709702732,0.004,103530.0,103520.0,0.56241604]
[1750709702956,0.004,103530.0,103520.0,0.47177661]
[1750709703160,0.004,103530.0,103520.0,0.48155639]
[1750709703366,0.39245347,103530.0,103520.0,0.46001589]
[1750709703583,0.39245347,103540.0,103530.0,0.0318]
[1750709704010,0.01454085,103560.0,103530.0,0.0318]
[1750709704215,0.39245347,103540.0,103530.0,0.22028]
[1750709704421,0.39245347,103540.0,103530.0,0.0318]
[1750709704629,0.39245347,103540.0,103530.0,0.22024]
[1750709704842,0.39245347,103540.0,103530.0,0.22232859]
[1750709705043,1.384099,103550.0,103540.0,0.0020974]
[1750709705255,1.77655247,103550.0,103530.0,0.22442599]
[1750709705456,0.39245347,103540.0,103530.0,0.22433744]
[1750709705839,0.34,103550.0,103530.0,0.22433744]
[1750709706199,0.34,103550.0,103530.0,0.25693744]
[1750709707030,0.34,103550.0,103530.0,0.25293744]
[1750709707031,0.39245347,103540.0,103530.0,0.25293744]
[1750709707230,0.39245347,103540.0,103530.0,0.25393744]
[1750709707607,0.39245347,103540.0,103530.0,0.25382599]
[1750709707821,0.39245347,103540.0,103530.0,0.06558599]
[1750709708033,0.97299253,103540.0,103530.0,0.00108859]
[1750709708232,0.9228803,103540.0,103530.0,0.00308859]
[1750709708646,0.9228803,103540.0,103530.0,0.00208859]
[1750709709063,2.3069793,103540.0,103530.0,0.00608859]
[1750709709890,1.91452583,103540.0,103530.0,0.00608859]
[1750709710713,1.52207236,103540.0,103530.0,0.00608859]
[1750709710887,1.40723212,103540.0,103530.0,0.07058599]
[1750709711112,0.41558659,103540.0,103530.0,0.07058599]
[1750709711325,0.41558659,103540.0,103530.0,0.03668859]
[1750709712169,0.73245347,103540.0,103530.0,0.06848859]
[1750709713423,0.34,103540.0,103530.0,0.06848859]
[1750709713634,0.73245347,103540.0,103530.0,0.06848859]
[1750709713846,0.34,103540.0,103530.0,0.06848859]
[1750709714054,0.73245347,103540.0,103530.0,0.06848859]
[1750709714264,0.34,103540.0,103530.0,0.06848859]
[1750709714497,0.73245347,103540.0,103530.0,0.06848859]
[1750709714904,0.34,103540.0,103530.0,0.06848859]
[1750709715104,0.73245347,103540.0,103530.0,0.06848859]
[1750709715323,0.73245347,103540.0,103530.0,0.07058599]
[1750709715771,0.39245347,103540.0,103530.0,0.07058599]
[1750709716614,0.39245347,103540.0,103530.0,0.03668859]
[1750709716843,0.39245347,103540.0,103530.0,0.00608859]
[1750709717081,0.56881821,103540.0,103530.0,0.00608859]
[1750709717518,0.5158792,103540.0,103530.0,0.00608859]
[1750709719057,0.52492385,103540.0,103530.0,0.00608859]
[1750709719277,0.42462446,103540.0,103530.0,0.07138599]
[1750709719485,0.42462446,103540.0,103530.0,0.06928859]
[1750709719741,0.42462448,103540.0,103530.0,0.03908859]
[1750709721246,0.52492387,103540.0,103530.0,0.00608859]
[1750709723202,0.07324085,103530.0,103500.0,0.0641974]
[1750709723416,0.39245347,103510.0,103500.0,0.0301]
[1750709723620,1.384099,103500.0,103490.0,0.2507974]
[1750709723843,1.77655247,103500.0,103490.0,0.2507974]
[1750709724059,2.60930533,103500.0,103490.0,0.0303]
[1750709724275,2.6324558,103500.0,103490.0,0.0303]
[1750709724490,2.6324558,103500.0,103490.0,0.0002]
[1750709725171,2.6324558,103500.0,103490.0,0.0002886]
[1750709725172,1.82439839,103500.0,103490.0,0.0002886]
[1750709725392,2.60930533,103500.0,103490.0,0.0002886]
[1750709725612,2.21685186,103500.0,103490.0,0.0002886]
[1750709725846,2.64082197,103500.0,103490.0,0.0032886]
[1750709726272,2.2483685,103500.0,103490.0,0.0688886]
[1750709726489,2.34671647,103500.0,103490.0,0.0688886]
[1750709726707,1.724099,103500.0,103490.0,0.070986]
[1750709726925,0.34,103500.0,103490.0,0.070986]
[1750709727787,0.5,103510.0,103500.0,0.061]
[1750709727990,0.34,103510.0,103500.0,0.0630974]
[1750709728206,0.34,103510.0,103500.0,0.2493374]
[1750709729250,0.34,103510.0,103500.0,0.2503374]
[1750709729446,0.49080144,103520.0,103510.0,0.0020974]
[1750709729650,0.5224089,103530.0,103520.0,0.061]
[1750709729865,0.85390484,103530.0,103520.0,0.061]
[1750709730091,0.51390484,103530.0,103520.0,0.0301]
[1750709730490,0.86293768,103530.0,103520.0,0.0281]
[1750709730718,0.86293768,103530.0,103510.0,0.0020974]
[1750709730912,0.49080144,103520.0,103510.0,0.0339974]
[1750709731176,0.83080144,103530.0,103510.0,0.0339974]
[1750709731387,0.86693936,103530.0,103510.0,0.0339974]
[1750709731585,0.86293936,103530.0,103510.0,0.0339974]
[1750709731805,0.36310496,103530.0,103510.0,0.0339974]
[1750709732016,0.8579064,103530.0,103510.0,0.0339974]
[1750709732629,0.8619064,103530.0,103510.0,0.0339974]
[1750709733064,0.49080144,103520.0,103510.0,0.0339974]
[1750709733311,0.49080144,103520.0,103510.0,0.0319]
[1750709733533,0.37445493,103530.0,103510.0,0.2495]
[1750709733743,0.49080144,103520.0,103510.0,0.2495]
[1750709734640,0.47075432,103530.0,103510.0,0.2495]
[1750709734909,0.49280144,103520.0,103510.0,0.2495]
[1750709735534,0.49380144,103520.0,103510.0,0.2495]
[1750709735753,0.003,103520.0,103510.0,0.0318]
[1750709735971,0.49180144,103520.0,103500.0,0.0635974]
[1750709736422,0.49080144,103510.0,103500.0,0.2492774]
[1750709736635,0.49080144,103510.0,103500.0,0.2491974]
[1750709736847,0.49080144,103510.0,103500.0,0.0615]
[1750709737069,0.49080144,103510.0,103500.0,0.2169]
[1750709737325,0.49080144,103510.0,103500.0,0.002]
[1750709737997,0.49080144,103510.0,103500.0,0.0050974]
[1750709738568,0.49080144,103510.0,103500.0,0.0351]
[1750709739161,1.49893924,103520.0,103510.0,0.0648]
[1750709739407,1.97519983,103520.0,103510.0,0.0648]
[1750709739776,1.99832072,103520.0,103510.0,0.0648]
[1750709739959,1.97519983,103520.0,103510.0,0.0648]
[1750709740545,1.87790044,103520.0,103510.0,0.0648]
[1750709743455,1.387099,103520.0,103510.0,0.0648]
[1750709743663,1.9010256,103520.0,103510.0,0.0648]
[1750709745773,1.9010256,103520.0,103500.0,0.2472]
[1750709745983,1.384099,103510.0,103500.0,0.2492974]
[1750709746197,0.93110083,103510.0,103500.0,0.002]
[1750709746441,0.96877538,103510.0,103500.0,0.002]
[1750709747101,2.35287438,103510.0,103500.0,0.003]
[1750709749522,2.35287438,103510.0,103500.0,0.0358]
[1750709750454,2.24014803,103510.0,103500.0,0.0668]
[1750709750681,0.3631337,103510.0,103500.0,0.0688974]
[1750709750899,0.75574964,103510.0,103500.0,0.0688974]
[1750709751090,1.384099,103510.0,103500.0,0.0050974]
[1750709751771,1.384099,103510.0,103500.0,0.0682974]
[1750709752696,0.09800413,103530.0,103510.0,0.0632]
[1750709752908,0.34,103520.0,103510.0,0.0632]
[1750709753115,0.36316168,103520.0,103510.0,0.0632]
[1750709753754,0.8537734,103520.0,103510.0,0.0632]
[1750709754177,0.8557734,103520.0,103510.0,0.0632]
[1750709754604,0.36516168,103520.0,103510.0,0.0632]
[1750709754801,0.8557734,103520.0,103510.0,0.0632]
[1750709755258,0.36516168,103520.0,103510.0,0.0632]
[1750709755468,0.8567734,103520.0,103510.0,0.0632]
[1750709755906,0.36616168,103520.0,103510.0,0.0632]
[1750709756924,0.02616168,103520.0,103510.0,0.44287544]
[1750709757152,0.02616168,103520.0,103510.0,0.2787084]
[1750709757153,0.003,103520.0,103510.0,0.2787084]
[1750709757375,0.003,103520.0,103510.0,0.47192644]
[1750709757602,0.003,103520.0,103510.0,0.44287544]
[1750709757821,0.003,103520.0,103510.0,0.45253624]
[1750709758045,0.003,103520.0,103510.0,0.48151762]
[1750709758701,0.002,103520.0,103510.0,0.47185738]
[1750709759186,1.384099,103530.0,103520.0,0.0632]
[1750709759428,0.02316278,103530.0,103520.0,0.0632]
[1750709759627,1.384099,103540.0,103510.0,0.43297796]
[1750709759813,1.384099,103530.0,103520.0,0.0632]
[1750709760703,0.61406889,103530.0,103520.0,0.18432]
[1750709760917,0.5137695,103530.0,103520.0,0.18432]
[1750709761134,1.99816789,103530.0,103520.0,0.18532]
[1750709761387,2.0252991,103530.0,103520.0,0.18532]
[1750709761633,1.53468735,103530.0,103520.0,0.001]
[1750709761871,1.50755617,103530.0,103520.0,0.001]
[1750709762101,1.99816789,103530.0,103520.0,0.001]
[1750709762312,1.99816789,103530.0,103520.0,0.0642]
[1750709763062,0.02315778,103530.0,103520.0,0.0662974]
[1750709763288,0.52895536,103560.0,103550.0,0.0632]
[1750709763523,0.52895536,103560.0,103550.0,0.24752]
[1750709763524,1.75445058,103560.0,103550.0,0.24752]
[1750709763750,0.86280315,103560.0,103550.0,0.24752]
[1750709763980,0.03219143,103560.0,103550.0,0.24752]
[1750709764198,0.52280315,103560.0,103550.0,0.24752]
[1750709764392,0.49965124,103560.0,103550.0,0.24752]
[1750709764651,0.49070024,103560.0,103550.0,0.24752]
[1750709764895,8.852e-05,103560.0,103550.0,0.24752]
[1750709765122,0.49070024,103560.0,103550.0,0.24752]
[1750709765345,8.852e-05,103560.0,103550.0,0.24752]
[1750709765604,0.49270024,103560.0,103550.0,0.4427608]
[1750709765831,0.49370024,103560.0,103550.0,0.2496174]
[1750709767915,0.49370024,103560.0,103550.0,0.2495774]
[1750709768838,1.382259,103550.0,103540.0,0.0658974]
[1750709769078,0.49061172,103550.0,103540.0,0.0309]
[1750709769553,0.49061172,103550.0,103530.0,0.0668974]
[1750709769779,0.49061172,103540.0,103530.0,0.2180374]
[1750709770258,0.59199963,103560.0,103530.0,0.2504374]
[1750709770472,0.49061172,103540.0,103530.0,0.2504374]
[1750709771245,0.49061172,103540.0,103530.0,0.2482374]
[1750709772252,0.49061172,103540.0,103530.0,0.2522374]
[1750709773852,1.882259,103550.0,103540.0,0.0302]
[1750709774090,1.382259,103550.0,103540.0,0.063]
[1750709774304,1.87287072,103550.0,103540.0,0.2493374]
[1750709774572,0.49061172,103550.0,103540.0,0.2493374]
[1750709775601,2.21295924,103560.0,103550.0,0.0652]
[1750709775813,2.70357096,103560.0,103550.0,0.0652]
[1750709776279,2.21295924,103560.0,103550.0,0.0652]
[1750709776494,0.83070024,103560.0,103550.0,0.0652]
[1750709777139,1.32231196,103560.0,103550.0,0.0652]
[1750709777786,0.34108852,103560.0,103550.0,0.0652]
[1750709778012,0.83170024,103560.0,103550.0,0.0652]
[1750709778233,1.32231196,103560.0,103550.0,0.0652]
[1750709778484,0.83170024,103560.0,103550.0,0.0652]
[1750709778705,1.32231196,103560.0,103550.0,0.0652]
[1750709779122,0.35210769,103560.0,103550.0,0.0652]
[1750709779346,0.84271941,103560.0,103550.0,0.0652]
[1750709779583,0.86579849,103560.0,103550.0,0.0652]
[1750709780444,0.37518677,103560.0,103550.0,0.0652]
[1750709780666,0.86579849,103560.0,103550.0,0.0652]
[1750709781092,0.86579849,103560.0,103550.0,0.0672974]
[1750709781537,1.35641021,103560.0,103550.0,0.0672974]
[1750709782183,1.37446525,103560.0,103550.0,0.0672974]
[1750709782587,0.88385353,103560.0,103550.0,0.0672974]
[1750709782836,0.37518677,103560.0,103550.0,0.0672974]
[1750709783049,0.86579849,103560.0,103550.0,0.0672974]
[1750709783526,0.52570997,103560.0,103550.0,0.0672974]
[1750709783746,0.3563108,103560.0,103550.0,0.0672974]
[1750709784394,0.37438084,103560.0,103550.0,0.0672974]
[1750709784614,0.86499257,103560.0,103550.0,0.0672974]
[1750709785281,0.50868177,103560.0,103550.0,0.0672974]
[1750709785700,0.84868177,103560.0,103550.0,0.0672974]
[1750709786164,0.51807005,103560.0,103550.0,0.4446008]
[1750709786384,0.49061172,103560.0,103550.0,0.4446008]
[1750709787055,0.50869848,103560.0,103550.0,0.4446008]
[1750709787276,0.50869848,103560.0,103550.0,0.2524574]
[1750709787922,0.50869848,103560.0,103550.0,0.4456008]
[1750709788145,0.50869848,103560.0,103550.0,0.4476008]
[1750709788605,0.50869848,103560.0,103550.0,0.2634408]
[1750709788815,0.50869848,103560.0,103550.0,0.4475608]
[1750709789263,0.50869848,103560.0,103550.0,0.2544174]
[1750709789711,0.50869848,103560.0,103550.0,0.4475608]
[1750709789955,0.01808676,103560.0,103550.0,0.45721787]
[1750709790176,0.50869848,103560.0,103550.0,0.4475608]
[1750709790392,0.01809728,103560.0,103550.0,0.46687495]
[1750709790610,0.3555662,103570.0,103560.0,0.26022215]
[1750709790831,0.52427095,103570.0,103560.0,0.26022215]
[1750709791505,0.52427095,103570.0,103560.0,0.26987838]
[1750709791718,0.52527095,103570.0,103560.0,0.26022215]
[1750709792155,0.52527095,103570.0,103560.0,0.26987829]
[1750709792371,0.52527095,103570.0,103560.0,0.26022215]
[1750709792603,0.03465923,103570.0,103560.0,0.27953452]
[1750709792826,0.50717792,103570.0,103560.0,0.38948996]
[1750709793040,0.50817792,103570.0,103560.0,0.39914591]
[1750709793256,0.0175662,103570.0,103560.0,0.40880177]
[1750709793483,0.50817792,103570.0,103560.0,0.40880112]
[1750709793736,1.00988656,103580.0,103570.0,0.63882341]
[1750709793737,0.11438656,103580.0,103570.0,0.63882341]
[1750709793973,0.11438656,103580.0,103570.0,0.70336426]
[1750709794184,0.11438656,103580.0,103570.0,0.16739679]
[1750709794185,0.60499828,103580.0,103570.0,0.16739679]
[1750709794406,0.11438656,103580.0,103570.0,0.16739679]
[1750709794630,0.60499828,103580.0,103570.0,0.16739679]
[1750709794824,0.62307288,103580.0,103570.0,0.10239679]
[1750709795142,0.60499828,103580.0,103570.0,0.0509974]
[1750709795394,0.13237303,103580.0,103570.0,0.0190974]
[1750709795639,0.11429829,103580.0,103570.0,0.3041683]
[1750709795875,0.11429829,103580.0,103570.0,0.46893872]
[1750709796080,0.11429829,103580.0,103570.0,0.4812483]
[1750709796519,0.11429829,103580.0,103570.0,0.4742483]
[1750709796738,0.11429829,103580.0,103570.0,0.47424848]
[1750709796949,0.11429829,103580.0,103570.0,0.48024876]
[1750709797164,0.60491001,103580.0,103570.0,0.2581774]
[1750709797375,0.60491001,103580.0,103570.0,0.26783261]
[1750709797609,0.60491001,103580.0,103570.0,0.47059383]
[1750709797610,0.11429829,103580.0,103570.0,0.47059383]
[1750709797836,0.11429829,103580.0,103570.0,0.58054824]
[1750709798050,0.60491001,103580.0,103570.0,0.57089322]
[1750709798261,0.60491001,103580.0,103570.0,0.57089341]
[1750709798511,0.60491001,103580.0,103570.0,0.36813209]
[1750709798727,0.11429829,103580.0,103570.0,0.58054769]
[1750709798945,0.11429829,103580.0,103570.0,0.66123801]
[1750709799160,0.11429829,103580.0,103570.0,0.42737679]
[1750709799371,0.60491001,103580.0,103570.0,0.437032]
[1750709799594,0.60491001,103580.0,103570.0,0.21139679]
[1750709799818,0.60491001,103580.0,103570.0,0.1110974]
[1750709799819,0.61393041,103580.0,103570.0,0.1110974]
[1750709800028,0.63197129,103580.0,103570.0,0.1110974]
[1750709800668,1.03557221,103580.0,103570.0,0.109]
[1750709800901,2.44091498,103580.0,103570.0,0.109]
[1750709801351,2.44091738,103580.0,103570.0,0.109]
[1750709801620,2.54798558,103580.0,103570.0,0.109]
[1750709801857,2.07191471,103580.0,103570.0,0.109]
[1750709802070,3.08209351,103580.0,103570.0,0.109]
[1750709802284,2.59148179,103580.0,103570.0,0.109]
[1750709802500,2.59148179,103580.0,103570.0,0.106]
[1750709802763,1.73679985,103570.0,103560.0,0.001]
[1750709802973,2.44732814,103570.0,103560.0,0.001]
[1750709803196,2.4473331,103570.0,103560.0,0.001]
[1750709803883,2.4473331,103570.0,103560.0,0.002]
[1750709804119,2.4473331,103570.0,103560.0,0.003]
[1750709804337,0.91873709,103570.0,103560.0,0.0050974]
[1750709805492,0.88753709,103570.0,103560.0,0.0050974]
[1750709805928,0.88076813,103570.0,103560.0,0.0050974]
[1750709806817,0.88077329,103570.0,103560.0,0.0050974]
[1750709807274,0.88077294,103570.0,103560.0,0.0050974]
[1750709808174,0.91187294,103570.0,103560.0,0.0050974]
[1750709808390,0.42126122,103570.0,103560.0,0.0050974]
[1750709808604,0.90284606,103570.0,103560.0,0.0050974]
[1750709808820,0.88479549,103570.0,103560.0,0.0050974]
[1750709811891,0.85369549,103570.0,103560.0,0.0050974]
[1750709812516,0.83061172,103570.0,103560.0,0.0050974]
[1750709812726,0.85371841,103570.0,103560.0,0.0050974]
[1750709812956,0.02310669,103570.0,103560.0,0.0050974]
[1750709813169,0.02310669,103570.0,103560.0,0.44508215]
[1750709813170,0.49061172,103570.0,103560.0,0.44508215]
[1750709813380,0.11429829,103580.0,103560.0,0.57434977]
[1750709813381,0.60491001,103580.0,103560.0,0.57434977]
[1750709813597,0.6049985,103580.0,103560.0,0.56469391]
[1750709813832,0.6049985,103580.0,103560.0,0.57434977]
[1750709814040,0.6049985,103580.0,103570.0,0.0020974]
[1750709814275,0.6049985,103580.0,103570.0,0.0333974]
[1750709814483,0.6049985,103580.0,103570.0,0.0020974]
[1750709815128,0.6059985,103580.0,103570.0,0.0020974]
[1750709815766,0.6049985,103580.0,103570.0,0.19520351]
[1750709815981,0.11438678,103580.0,103570.0,0.20020351]
[1750709816193,0.6049985,103580.0,103570.0,0.23340351]
[1750709816412,0.6049985,103580.0,103570.0,0.0402974]
[1750709816891,0.11438678,103580.0,103570.0,0.31981313]
[1750709817107,0.11438678,103580.0,103570.0,0.39576806]
[1750709817546,0.11438678,103580.0,103570.0,0.38611322]
[1750709817765,0.11438678,103580.0,103570.0,0.56037811]
[1750709817976,0.11438678,103580.0,103570.0,0.57003284]
[1750709818186,0.11438678,103580.0,103570.0,0.60651947]
[1750709818398,0.11438678,103580.0,103570.0,0.60651965]
[1750709818620,0.11438678,103580.0,103570.0,0.59686491]
[1750709818836,0.11438678,103580.0,103570.0,0.3668029]
[1750709819044,0.11438678,103580.0,103570.0,0.3764582]
[1750709819250,0.11438678,103580.0,103570.0,0.5603782]
[1750709819459,0.11438678,103580.0,103570.0,0.3668029]
[1750709819672,0.11438678,103580.0,103570.0,0.5867834]
[1750709819893,0.11438678,103580.0,103570.0,0.57212819]
[1750709820109,0.11438678,103580.0,103570.0,0.58178349]
[1750709820321,0.11438678,103580.0,103570.0,0.5944386]
[1750709820531,0.11438678,103580.0,103570.0,0.58178349]
[1750709820748,0.11438678,103580.0,103570.0,0.54398819]
[1750709820986,0.11438678,103580.0,103570.0,0.59599842]
[1750709821192,0.11438678,103580.0,103570.0,0.59699842]
[1750709821447,0.11438678,103580.0,103570.0,0.57768819]
[1750709821641,0.11438678,103580.0,103570.0,0.5599382]
[1750709821903,0.6049985,103580.0,103570.0,0.5502829]
[1750709822115,0.6049985,103580.0,103570.0,0.5629382]
[1750709822326,0.6049985,103580.0,103570.0,0.5205829]
[1750709822761,0.6049985,103580.0,103570.0,0.5302382]
[1750709822976,0.11438678,103580.0,103570.0,0.5205829]
[1750709823196,0.11438678,103580.0,103570.0,0.53989304]
[1750709823413,0.11438678,103580.0,103570.0,0.58114769]
[1750709823633,0.11438678,103580.0,103570.0,0.57149304]
[1750709823851,0.11438678,103580.0,103570.0,0.58114778]
[1750709824088,0.11438678,103580.0,103570.0,0.57149313]
[1750709824304,0.11438678,103580.0,103570.0,0.56183811]
[1750709824555,0.11438678,103580.0,103570.0,0.57149313]